[Event "22nd Ruzomberok Open 2019"]
[Site "Ruzomberok"]
[Date "2019.07.04"]
[Round "6.21"]
[White "Mc Aleenan, Charles"]
[Black "Ambrozi, Peter"]
[Result "0-1"]
[ECO "D00"]
[WhiteElo "1746"]
[BlackElo "1888"]
[Annotator "NA"]
[PlyCount "106"]
[EventDate "2019.06.29"]
[EventType "swiss"]
[EventCountry "SVK"]
[SourceTitle "playchess.com"]
[Source "ChessBase"]
[SourceQuality "1"]
[TimeControl "40/5400+30:1800+30"]

1. d4 {[%emt 0:00:00]} d5 {[%emt 0:00:00]} 2. Bg5 {[%emt 0:00:00]} h6 {[%emt 0:00:10]} 3. Bh4 {[%emt 0:00:05]} c6 {[%emt 0:00:21]} 4. Nf3 {[%emt 0:00:45]} Qb6 {[%emt 0:00:31]} 5. Qc1 {[%emt 0:00:18]} Bf5 {[%emt 0:02:36]} 6. e3 {[%emt 0:00:23]} e6 {[%emt 0:00:30]} 7. Be2 {[%emt 0:06:07]} Be7 {[%emt 0:02:32]} 8. Bg3 {[%emt 0:02:57]} Nf6 {[%emt 0:02:40]} 9. Nbd2 {[%emt 0:04:18]} Nbd7 {[%emt 0:00:58]} 10. h3 {[%emt 0:05:05]} O-O {[%emt 0:05:42]} 11. O-O {[%emt 0:02:00]} Rac8 {[%emt 0:01:27]} 12. a4 {[%emt 0:03:32]} a5 {[%emt 0:03:06]} 13. Ne5 {[%emt 0:04:30]} Nxe5 {[%emt 0:05:50]} 14. Bxe5 {[%emt 0:01:37]} Nd7 {[%emt 0:00:40]} 15. Bh2 {[%emt 0:04:29]} Rfd8 {[%emt 0:07:02]} 16. Nf3 {[%emt 0:03:32]} Bf6 {[%emt 0:06:48]} 17. Rd1 {[%emt 0:03:28]} c5 {[%emt 0:03:00]} 18. c3 {[%emt 0:07:19]} c4 19. Rd2 Qc6 {[%emt 0:05:14]} 20. Bd1 {[%emt 0:03:14]} Be7 {[%emt 0:04:02]} 21. Ne5 {[%emt 0:05:34]} Nxe5 {[%emt 0:00:54]} 22. Bxe5 {[%emt 0:00:17]} Bd6 {[%emt 0:02:55]} 23. Bxd6 {[%emt 0:00:19]} Rxd6 {[%emt 0:00:09]} 24. Bc2 {[%emt 0:02:53]} Bxc2 {[%emt 0:01:03]} 25. Qxc2 {[%emt 0:00:13]} Rb8 {[%emt 0:01:23]} 26. f4 {[%emt 0:03:40]} b5 {[%emt 0:00:26]} 27. axb5 {[%emt 0:03:21]} Rxb5 {[%emt 0:00:40]} 28. Re1 {[%emt 0:02:56]} f5 {[%emt 0:01:22]} 29. Qa4 {[%emt 0:02:31]} Qb7 {[%emt 0:01:00]} 30. Ree2 {[%emt 0:03:34]} Rdb6 {[%emt 0:02:01]} 31. Qa2 Kf7 32. Kh2 {[%emt 0:05:01]} Qa7 {[%emt 0:02:37]} 33. Qa4 {[%emt 0:00:46]} Qe7 {[%emt 0:00:53]} 34. Qd1 {[%emt 0:04:01]} Rb3 {[%emt 0:00:39]} 35. Qa1 {[%emt 0:02:27]} Ra6 {[%emt 0:00:31]} 36. Qa4 {[%emt 0:00:23]} Qe8 37. Qxe8+ {[%emt 0:05:24]} Kxe8 {[%emt 0:00:28]} 38. Re1 {[%emt 0:00:05]} Rab6 {[%emt 0:03:45]} 39. Ree2 {[%emt 0:02:42]} a4 {[%emt 0:00:17]} 40. g4 {[%emt 0:00:50]} g6 {[%emt 0:01:25]} 41. gxf5 {[%emt 0:31:36]} exf5 {[%emt 0:30:36]} 42. Kg3 {[%emt 0:01:24]} a3 {[%emt 0:00:21]} 43. bxa3 {[%emt 0:00:22]} Rxa3 44. Ra2 {[%emt 0:00:20]} Rxc3 {[%emt 0:04:11]} 45. Ra8+ {[%emt 0:00:18]} Ke7 {[%emt 0:00:21]} 46. Ra7+ {[%emt 0:01:29]} Ke6 47. Kf3 {[%emt 0:00:47]} Rcb3 {[%emt 0:00:40]} 48. Rh7 {[%emt 0:00:29]} Kf6 {[%emt 0:00:43]} 49. Ra2 {[%emt 0:00:36]} Re6 {[%emt 0:01:45]} 50. Ra8 {[%emt 0:00:00]} Rbxe3+ 51. Kf2 {[%emt 0:00:00]} Re8 {[%emt 0:00:00]} 52. Ra6+ {[%emt 0:00:00]} R3e6 {[%emt 0:00:00]} 53. Raa7 {[%emt 0:00:00]} R8e7 {[%emt 0:00:00]} 0-1

[Event "22nd Ruzomberok Open 2019"]
[Site "Ruzomberok"]
[Date "2019.07.04"]
[Round "6.22"]
[White "Karcol, Jan"]
[Black "Bartanus, Stanislav"]
[Result "1-0"]
[ECO "D05"]
[WhiteElo "1882"]
[BlackElo "1781"]
[Annotator "NA"]
[PlyCount "27"]
[EventDate "2019.06.29"]
[EventType "swiss"]
[EventCountry "SVK"]
[SourceTitle "playchess.com"]
[Source "ChessBase"]
[SourceQuality "1"]
[TimeControl "40/5400+30:1800+30"]

1. d4 {[%emt 0:00:00]} Nf6 {[%emt 0:00:10]} 2. Nf3 {[%emt 0:00:00]} e6 {[%emt 0:01:08]} 3. e3 {[%emt 0:00:00]} d5 {[%emt 0:00:21]} 4. Bd3 {[%emt 0:00:12]} Be7 {[%emt 0:00:21]} 5. Nbd2 {[%emt 0:00:18]} Nbd7 {[%emt 0:00:54]} 6. O-O {[%emt 0:00:11]} O-O {[%emt 0:00:10]} 7. e4 {[%emt 0:00:52]} dxe4 {[%emt 0:06:44]} 8. Nxe4 {[%emt 0:00:03]} Nxe4 {[%emt 0:00:15]} 9. Bxe4 {[%emt 0:00:02]} Nf6 {[%emt 0:00:14]} 10. Bd3 {[%emt 0:00:18]} c5 {[%emt 0:03:15]} 11. dxc5 {[%emt 0:05:04]} Bxc5 {[%emt 0:00:20]} 12. Bg5 {[%emt 0:00:28]} b6 {[%emt 0:07:14]} 13. Qe2 {[%emt 0:03:14]} Be7 {[%emt 0:01:37]} 14. Bxf6 1-0

[Event "22nd Ruzomberok Open 2019"]
[Site "Ruzomberok"]
[Date "2019.07.04"]
[Round "6.23"]
[White "Tomanek, Rafael"]
[Black "Horbal, Jozef"]
[Result "1/2-1/2"]
[ECO "E92"]
[WhiteElo "1880"]
[BlackElo "1660"]
[Annotator "NA"]
[PlyCount "72"]
[EventDate "2019.06.29"]
[EventType "swiss"]
[EventCountry "SVK"]
[SourceTitle "playchess.com"]
[Source "ChessBase"]
[SourceQuality "1"]
[TimeControl "40/5400+30:1800+30"]

1. d4 {[%emt 0:00:00]} Nf6 {[%emt 0:00:00]} 2. Nf3 {[%emt 0:00:00]} g6 {[%emt 0:00:45]} 3. c4 {[%emt 0:00:00]} d6 {[%emt 0:00:35]} 4. Nc3 {[%emt 0:00:00]} Bg7 {[%emt 0:00:20]} 5. e4 {[%emt 0:00:42]} O-O {[%emt 0:00:26]} 6. Be2 {[%emt 0:00:47]} e5 {[%emt 0:01:33]} 7. dxe5 {[%emt 0:00:09]} dxe5 {[%emt 0:00:42]} 8. Qxd8 {[%emt 0:00:20]} Rxd8 {[%emt 0:02:32]} 9. Bg5 {[%emt 0:00:11]} Re8 {[%emt 0:04:04]} 10. Nd5 {[%emt 0:00:30]} Nxd5 {[%emt 0:00:34]} 11. cxd5 {[%emt 0:00:19]} c6 {[%emt 0:13:57]} 12. Bc4 {[%emt 0:00:56]} cxd5 {[%emt 0:01:39]} 13. Bxd5 {[%emt 0:00:20]} Na6 {[%emt 0:00:56]} 14. O-O {[%emt 0:07:17]} Nc7 {[%emt 0:01:54]} 15. Bb3 {[%emt 0:15:07]} Be6 {[%emt 0:01:48]} 16. Rfd1 {[%emt 0:05:40]} Bxb3 {[%emt 0:01:36]} 17. axb3 {[%emt 0:01:30]} a6 {[%emt 0:03:09]} 18. Rd7 {[%emt 0:05:00]} Rac8 {[%emt 0:04:18]} 19. Be3 {[%emt 0:07:31]} Red8 {[%emt 0:04:33]} 20. Rad1 {[%emt 0:06:15]} Ne6 {[%emt 0:00:27]} 21. Kf1 {[%emt 0:07:20]} Rxd7 {[%emt 0:01:24]} 22. Rxd7 {[%emt 0:01:51]} Rc7 {[%emt 0:02:56]} 23. Rxc7 {[%emt 0:03:48]} Nxc7 {[%emt 0:00:18]} 24. Ke2 {[%emt 0:00:36]} Ne6 {[%emt 0:00:22]} 25. g3 {[%emt 0:01:19]} Kf8 {[%emt 0:00:22]} 26. Kd3 {[%emt 0:01:34]} Ke7 {[%emt 0:00:20]} 27. Kc4 {[%emt 0:03:30]} Kd6 {[%emt 0:00:18]} 28. Ng5 {[%emt 0:01:45]} Nxg5 {[%emt 0:00:42]} 29. Bxg5 {[%emt 0:00:08]} Bf8 {[%emt 0:02:04]} 30. g4 {[%emt 0:04:04]} Ke6 {[%emt 0:01:27]} 31. f3 {[%emt 0:03:31]} b5+ {[%emt 0:02:03]} 32. Kd3 {[%emt 0:02:38]} Bc5 {[%emt 0:02:06]} 33. Bd2 {[%emt 0:04:10]} Bd4 {[%emt 0:00:55]} 34. Kc2 {[%emt 0:00:47]} Kd6 {[%emt 0:03:50]} 35. b4 {[%emt 0:01:07]} Ke6 {[%emt 0:00:58]} 36. h3 {[%emt 0:02:10]} Bb6 {[%emt 0:00:30]} 1/2-1/2

[Event "22nd Ruzomberok Open 2019"]
[Site "Ruzomberok"]
[Date "2019.07.04"]
[Round "6.24"]
[White "Mikulec, Martin"]
[Black "Taragel, Marian"]
[Result "1-0"]
[ECO "C44"]
[WhiteElo "1875"]
[BlackElo "1636"]
[Annotator "NA"]
[PlyCount "41"]
[EventDate "2019.06.29"]
[EventType "swiss"]
[EventCountry "SVK"]
[SourceTitle "playchess.com"]
[Source "ChessBase"]
[SourceQuality "1"]
[TimeControl "40/5400+30:1800+30"]

1. e4 e5 2. Nf3 Nc6 3. c3 d5 4. Qa4 f6 5. Bb5 Nge7 6. exd5 Qxd5 7. O-O e4 8. Nd4 Bd7 9. Nxc6 Nxc6 10. Re1 f5 11. d3 a6 12. Bc4 Qe5 13. Qc2 Na5 14. Nd2 Bc6 15. dxe4 fxe4 16. Bd3 Bd6 17. Nf3 Qf5 18. Bxe4 Bxe4 19. Rxe4+ Kf7 20. Re7+ Kf6 21. Rf7+ {Qh5} 1-0

[Event "22nd Ruzomberok Open 2019"]
[Site "Ruzomberok"]
[Date "2019.07.04"]
[Round "6.25"]
[White "Verba, Vladimir"]
[Black "Korenova, Simona"]
[Result "1/2-1/2"]
[ECO "B23"]
[WhiteElo "1708"]
[BlackElo "1764"]
[Annotator "NA"]
[PlyCount "66"]
[EventDate "2019.06.29"]
[EventType "swiss"]
[EventCountry "SVK"]
[SourceTitle "playchess.com"]
[Source "ChessBase"]
[SourceQuality "1"]
[TimeControl "40/5400+30:1800+30"]

1. e4 {[%emt 0:00:00]} c5 {[%emt 0:00:00]} 2. Nc3 {[%emt 0:00:00]} d6 {[%emt 0:01:06]} 3. f4 {[%emt 0:00:09]} Nf6 {[%emt 0:01:14]} 4. Nf3 {[%emt 0:01:49]} g6 {[%emt 0:00:32]} 5. Bb5+ {[%emt 0:03:23]} Bd7 {[%emt 0:01:17]} 6. Bxd7+ {[%emt 0:01:39]} Nbxd7 {[%emt 0:03:19]} 7. O-O {[%emt 0:00:15]} Bg7 {[%emt 0:00:17]} 8. d3 {[%emt 0:00:17]} O-O {[%emt 0:01:28]} 9. Qe1 {[%emt 0:00:13]} a6 {[%emt 0:05:16]} 10. Qh4 {[%emt 0:02:39]} e6 {[%emt 0:05:50]} 11. g4 {[%emt 0:03:01]} b5 {[%emt 0:06:54]} 12. f5 {[%emt 0:04:01]} b4 {[%emt 0:05:02]} 13. Ne2 {[%emt 0:01:14]} c4 {[%emt 0:06:56]} 14. Bg5 {[%emt 0:04:36]} Qb6+ {[%emt 0:06:11]} 15. Kh1 {[%emt 0:02:38]} exf5 {[%emt 0:06:51]} 16. gxf5 {[%emt 0:03:23]} Nh5 {[%emt 0:05:46]} 17. Rab1 {[%emt 0:06:39]} cxd3 {[%emt 0:04:23]} 18. cxd3 {[%emt 0:01:26]} Rac8 {[%emt 0:01:30]} 19. Rg1 {[%emt 0:10:22]} Ne5 {[%emt 0:07:06]} 20. Rbf1 {[%emt 0:08:36]} Rc2 {[%emt 0:12:57]} 21. Nc1 {[%emt 0:10:56]} Rfc8 {[%emt 0:07:48]} 22. f6 {[%emt 0:06:52]} Nxf6 {[%emt 0:07:38]} 23. Nxe5 {[%emt 0:06:18]} dxe5 {[%emt 0:00:59]} 24. Bxf6 {[%emt 0:00:10]} Rxc1 {[%emt 0:00:45]} 25. Rxc1 {[%emt 0:03:37]} Rxc1 {[%emt 0:00:09]} 26. Rxc1 {[%emt 0:00:16]} Bxf6 {[%emt 0:00:13]} 27. Qh6 {[%emt 0:02:27]} Qe6 {[%emt 0:00:35]} 28. Rc4 {[%emt 0:00:35]} Qg4 {[%emt 0:00:57]} 29. Qe3 {[%emt 0:04:33]} Bg5 {[%emt 0:00:28]} 30. Qf2 {[%emt 0:07:49]} Qd1+ {[%emt 0:00:17]} 31. Kg2 {[%emt 0:00:31]} Qg4+ {[%emt 0:00:22]} 32. Kf1 {[%emt 0:01:02]} Qd1+ {[%emt 0:00:16]} 33. Kg2 {[%emt 0:00:41]} Qg4+ {[%emt 0:00:17]} 1/2-1/2

[Event "22nd Ruzomberok Open 2019"]
[Site "Ruzomberok"]
[Date "2019.07.04"]
[Round "6.26"]
[White "Pecho, Juraj"]
[Black "Cernekova, Martina"]
[Result "0-1"]
[ECO "D00"]
[WhiteElo "1900"]
[BlackElo "1659"]
[Annotator "NA"]
[PlyCount "134"]
[EventDate "2019.06.29"]
[EventType "swiss"]
[EventCountry "SVK"]
[SourceTitle "playchess.com"]
[Source "ChessBase"]
[SourceQuality "1"]
[TimeControl "40/5400+30:1800+30"]

1. d4 {[%emt 0:00:00]} d5 {[%emt 0:00:00]} 2. Bf4 {[%emt 0:00:00]} Nf6 {[%emt 0:00:00]} 3. e3 {[%emt 0:00:00]} e6 {[%emt 0:00:00]} 4. Bd3 {[%emt 0:00:00]} c5 {[%emt 0:00:16]} 5. c3 {[%emt 0:00:05]} Nc6 {[%emt 0:00:19]} 6. Nd2 {[%emt 0:00:18]} c4 {[%emt 0:00:35]} 7. Bc2 {[%emt 0:00:02]} Bd6 {[%emt 0:00:30]} 8. Bg3 {[%emt 0:00:02]} O-O {[%emt 0:00:24]} 9. Ngf3 {[%emt 0:00:05]} b5 {[%emt 0:01:39]} 10. Qe2 {[%emt 0:02:22]} b4 {[%emt 0:00:24]} 11. e4 {[%emt 0:00:35]} dxe4 {[%emt 0:00:43]} 12. Nxe4 {[%emt 0:00:07]} Bxg3 {[%emt 0:03:45]} 13. hxg3 {[%emt 0:02:42]} g6 {[%emt 0:00:49]} 14. Qxc4 {[%emt 0:07:24]} Bb7 {[%emt 0:02:27]} 15. Nc5 {[%emt 0:00:26]} Qb6 {[%emt 0:00:57]} 16. O-O {[%emt 0:09:25]} a5 {[%emt 0:01:10]} 17. Nxb7 {[%emt 0:00:10]} Qxb7 {[%emt 0:00:12]} 18. Rfe1 {[%emt 0:02:36]} Rac8 {[%emt 0:00:41]} 19. Qb3 {[%emt 0:06:05]} Rc7 {[%emt 0:01:41]} 20. a3 {[%emt 0:02:32]} bxc3 {[%emt 0:00:35]} 21. Qxb7 {[%emt 0:00:17]} Rxb7 {[%emt 0:00:08]} 22. bxc3 {[%emt 0:00:08]} Rb2 {[%emt 0:00:51]} 23. Ba4 {[%emt 0:00:11]} Ne7 {[%emt 0:00:33]} 24. Rec1 {[%emt 0:07:41]} Ne4 {[%emt 0:00:44]} 25. c4 {[%emt 0:04:38]} Nxf2 {[%emt 0:00:49]} 26. Ne5 {[%emt 0:05:09]} Ne4 {[%emt 0:01:30]} 27. g4 {[%emt 0:03:54]} Rd8 {[%emt 0:01:38]} 28. Nd7 {[%emt 0:05:01]} Rd2 {[%emt 0:01:06]} 29. d5 {[%emt 0:05:30]} exd5 {[%emt 0:01:25]} 30. cxd5 {[%emt 0:01:16]} Nxd5 {[%emt 0:01:05]} 31. Rd1 {[%emt 0:01:05]} Rxd1+ {[%emt 0:02:24]} 32. Rxd1 {[%emt 0:00:19]} Nec3 {[%emt 0:01:41]} 33. Nf6+ {[%emt 0:02:21]} Kg7 {[%emt 0:00:24]} 34. Nxd5 {[%emt 0:06:40]} Rxd5 {[%emt 0:00:45]} 35. Rxd5 {[%emt 0:00:21]} Nxd5 {[%emt 0:00:06]} 36. Kf2 {[%emt 0:00:46]} Kf6 {[%emt 0:00:10]} 37. Kf3 {[%emt 0:00:31]} h6 {[%emt 0:00:11]} 38. Bc6 {[%emt 0:00:54]} Ke5 {[%emt 0:00:58]} 39. Be8 {[%emt 0:01:06]} Ke6 {[%emt 0:00:18]} 40. a4 {[%emt 0:02:20]} g5 {[%emt 0:00:20]} 41. Bc6 {[%emt 0:31:13]} Ke5 {[%emt 0:30:14]} 42. Be8 {[%emt 0:01:14]} f6 {[%emt 0:00:19]} 43. Bg6 {[%emt 0:01:05]} Kd4 {[%emt 0:00:46]} 44. Bf5 {[%emt 0:00:43]} Nb6 {[%emt 0:00:26]} 45. Bc2 {[%emt 0:00:19]} Kc3 {[%emt 0:00:18]} 46. Bd1 {[%emt 0:00:20]} Nc4 {[%emt 0:01:14]} 47. Be2 {[%emt 0:00:47]} Ne5+ {[%emt 0:01:15]} 48. Ke3 {[%emt 0:01:55]} Kb4 {[%emt 0:01:05]} 49. Bd1 {[%emt 0:00:59]} Nc4+ {[%emt 0:00:15]} 50. Ke4 {[%emt 0:00:27]} Nb2 {[%emt 0:00:21]} 51. Bf3 {[%emt 0:01:49]} Nxa4 {[%emt 0:00:30]} 52. Kf5 {[%emt 0:00:13]} Nc3 {[%emt 0:00:32]} 53. Bc6 {[%emt 0:02:21]} Nb5 {[%emt 0:00:20]} 54. Bd5 {[%emt 0:01:13]} a4 {[%emt 0:00:08]} 55. Kxf6 {[%emt 0:00:18]} a3 {[%emt 0:00:04]} 56. Kg6 {[%emt 0:00:04]} Nd4 {[%emt 0:00:16]} 57. Ba2 {[%emt 0:01:18]} Kc3 {[%emt 0:00:10]} 58. Kxh6 {[%emt 0:01:07]} Kb2 {[%emt 0:00:06]} 59. Bf7 {[%emt 0:01:38]} Nb3 {[%emt 0:00:06]} 60. Kxg5 {[%emt 0:00:22]} a2 {[%emt 0:00:06]} 61. Kh6 {[%emt 0:04:00]} a1=Q {[%emt 0:00:10]} 62. g5 {[%emt 0:01:02]} Qh1+ {[%emt 0:00:22]} 63. Bh5 {[%emt 0:01:00]} Qxg2 {[%emt 0:00:41]} 64. g6 {[%emt 0:00:02]} Nd4 {[%emt 0:00:34]} 65. Kh7 {[%emt 0:00:44]} Ne6 {[%emt 0:00:36]} 66. Kh6 {[%emt 0:03:28]} Qg5+ {[%emt 0:00:16]} 67. Kh7 {[%emt 0:00:11]} Qxh5+ {[%emt 0:00:11]} 0-1

[Event "22nd Ruzomberok Open 2019"]
[Site "Ruzomberok"]
[Date "2019.07.04"]
[Round "6.28"]
[White "Kukan, Michal"]
[Black "Mudron, Jan"]
[Result "1-0"]
[ECO "A05"]
[WhiteElo "1698"]
[BlackElo "1756"]
[Annotator "NA"]
[PlyCount "57"]
[EventDate "2019.06.29"]
[EventType "swiss"]
[EventCountry "SVK"]
[SourceTitle "playchess.com"]
[Source "ChessBase"]
[SourceQuality "1"]
[TimeControl "40/5400+30:1800+30"]

1. Nf3 {[%emt 0:00:00]} Nf6 {[%emt 0:00:00]} 2. Nc3 {[%emt 0:00:00]} d5 {[%emt 0:02:00]} 3. d4 {[%emt 0:00:37]} Bf5 {[%emt 0:01:43]} 4. Nh4 {[%emt 0:01:26]} Bg6 {[%emt 0:00:28]} 5. Nxg6 {[%emt 0:00:44]} hxg6 {[%emt 0:00:08]} 6. Bg5 {[%emt 0:01:23]} e6 {[%emt 0:00:08]} 7. e4 {[%emt 0:02:23]} dxe4 {[%emt 0:00:55]} 8. Nxe4 {[%emt 0:01:15]} Be7 {[%emt 0:00:21]} 9. Bd3 {[%emt 0:01:32]} c6 {[%emt 0:00:54]} 10. Be3 {[%emt 0:03:08]} Nd5 {[%emt 0:02:30]} 11. Qd2 {[%emt 0:02:16]} Nxe3 {[%emt 0:02:10]} 12. fxe3 {[%emt 0:02:21]} Nd7 {[%emt 0:05:02]} 13. O-O-O {[%emt 0:05:59]} Nf6 {[%emt 0:00:55]} 14. Ng5 {[%emt 0:05:05]} Qd5 {[%emt 0:00:55]} 15. h4 {[%emt 0:06:29]} Nd7 {[%emt 0:28:55]} 16. c4 {[%emt 0:06:55]} Qd6 {[%emt 0:00:58]} 17. Ne4 {[%emt 0:06:51]} Qc7 {[%emt 0:03:08]} 18. Rdf1 {[%emt 0:05:49]} Nf6 {[%emt 0:01:51]} 19. Ng5 {[%emt 0:04:30]} Bd6 {[%emt 0:00:44]} 20. c5 {[%emt 0:12:56]} Bg3 {[%emt 0:00:23]} 21. Rh3 {[%emt 0:03:58]} Ke7 {[%emt 0:08:52]} 22. e4 {[%emt 0:01:51]} Raf8 {[%emt 0:01:43]} 23. e5 {[%emt 0:02:15]} Bxe5 {[%emt 0:08:11]} 24. dxe5 {[%emt 0:00:14]} Qxe5 {[%emt 0:00:03]} 25. Qb4 {[%emt 0:01:17]} Qc7 {[%emt 0:05:02]} 26. Rhf3 {[%emt 0:04:54]} Nd5 {[%emt 0:03:54]} 27. Rxf7+ {[%emt 0:00:30]} Rxf7 {[%emt 0:00:11]} 28. Rxf7+ {[%emt 0:00:12]} Kd8 {[%emt 0:00:16]} 29. Nxe6+ {[%emt 0:00:22]} 1-0

[Event "22nd Ruzomberok Open 2019"]
[Site "Ruzomberok"]
[Date "2019.07.04"]
[Round "6.29"]
[White "Galbavy, Dusan"]
[Black "Jakab, Stefan"]
[Result "0-1"]
[ECO "C31"]
[WhiteElo "1678"]
[BlackElo "1751"]
[Annotator "NA"]
[PlyCount "80"]
[EventDate "2019.06.29"]
[EventType "swiss"]
[EventCountry "SVK"]
[SourceTitle "playchess.com"]
[Source "ChessBase"]
[SourceQuality "1"]
[TimeControl "40/5400+30:1800+30"]

1. e4 {[%emt 0:04:37]} e5 {[%emt 0:02:36]} 2. f4 {[%emt 0:03:29]} d5 {[%emt 0:01:49]} 3. exd5 {[%emt 0:00:38]} exf4 {[%emt 0:03:42]} 4. Nf3 {[%emt 0:00:56]} Qxd5 {[%emt 0:02:25]} 5. Nc3 {[%emt 0:00:41]} Qh5 {[%emt 0:05:51]} 6. d4 {[%emt 0:01:42]} g5 {[%emt 0:03:02]} 7. h4 {[%emt 0:03:55]} Bd6 {[%emt 0:06:44]} 8. Nxg5 {[%emt 0:05:15]} Qxd1+ {[%emt 0:00:40]} 9. Kxd1 {[%emt 0:02:46]} h6 {[%emt 0:02:26]} 10. Nge4 {[%emt 0:02:21]} Bg4+ {[%emt 0:00:39]} 11. Be2 {[%emt 0:00:25]} Bxe2+ {[%emt 0:00:34]} 12. Nxe2 {[%emt 0:00:25]} Nc6 {[%emt 0:03:56]} 13. Nxd6+ {[%emt 0:00:46]} cxd6 {[%emt 0:00:11]} 14. Bxf4 {[%emt 0:00:36]} Kd7 {[%emt 0:01:14]} 15. c3 {[%emt 0:01:22]} Nf6 {[%emt 0:00:38]} 16. Ng3 {[%emt 0:06:58]} Rhg8 {[%emt 0:08:31]} 17. Rf1 {[%emt 0:05:27]} Nd5 {[%emt 0:01:06]} 18. Ne2 {[%emt 0:02:48]} Rxg2 {[%emt 0:03:04]} 19. Bxh6 {[%emt 0:02:15]} Re8 {[%emt 0:02:32]} 20. Nc1 {[%emt 0:15:26]} f6 {[%emt 0:03:35]} 21. Bd2 {[%emt 0:07:16]} Rh2 {[%emt 0:04:58]} 22. c4 {[%emt 0:03:44]} Ne3+ {[%emt 0:01:05]} 23. Bxe3 {[%emt 0:00:19]} Rxe3 {[%emt 0:00:04]} 24. d5 {[%emt 0:02:16]} Ne5 {[%emt 0:03:02]} 25. b3 {[%emt 0:01:16]} Nf3 {[%emt 0:01:56]} 26. Rxf3 {[%emt 0:00:36]} Rxf3 {[%emt 0:00:11]} 27. Ke1 {[%emt 0:01:11]} Rc3 {[%emt 0:01:16]} 28. Kd1 {[%emt 0:01:04]} Rg3 {[%emt 0:04:50]} 29. Ne2 {[%emt 0:00:36]} Rgg2 {[%emt 0:00:44]} 30. Kd2 {[%emt 0:01:02]} Rxe2+ {[%emt 0:00:35]} 31. Kc3 {[%emt 0:00:09]} Rxa2 {[%emt 0:01:35]} 32. Rf1 {[%emt 0:00:20]} Ke7 {[%emt 0:02:08]} 33. Re1+ {[%emt 0:00:15]} Rae2 {[%emt 0:00:51]} 34. Rg1 {[%emt 0:00:07]} Kf7 {[%emt 0:01:01]} 35. Rg4 {[%emt 0:00:10]} f5 {[%emt 0:01:57]} 36. Rg5 {[%emt 0:01:09]} Kf6 {[%emt 0:00:26]} 37. Rg8 {[%emt 0:00:06]} Rxh4 {[%emt 0:00:42]} 38. Rb8 {[%emt 0:00:26]} Rh3+ {[%emt 0:00:53]} 39. Kb4 {[%emt 0:00:07]} Rb2 {[%emt 0:00:29]} 40. Ka4 {[%emt 0:00:36]} Rbxb3 {[%emt 0:00:29]} 0-1

[Event "22nd Ruzomberok Open 2019"]
[Site "Ruzomberok"]
[Date "2019.07.04"]
[Round "6.30"]
[White "Majerova, Veronika"]
[Black "Zentko, Ladislav"]
[Result "1/2-1/2"]
[ECO "D02"]
[WhiteElo "1531"]
[BlackElo "1732"]
[Annotator "NA"]
[PlyCount "55"]
[EventDate "2019.06.29"]
[EventType "swiss"]
[EventCountry "SVK"]
[SourceTitle "playchess.com"]
[Source "ChessBase"]
[SourceQuality "1"]
[TimeControl "40/5400+30:1800+30"]

1. d4 {[%emt 0:00:00]} Nf6 {[%emt 0:00:00]} 2. Nf3 {[%emt 0:00:00]} d5 {[%emt 0:00:00]} 3. Bf4 {[%emt 0:00:00]} e6 {[%emt 0:00:24]} 4. e3 {[%emt 0:00:06]} b6 {[%emt 0:02:03]} 5. Bd3 {[%emt 0:00:23]} Bb7 {[%emt 0:01:05]} 6. Nbd2 {[%emt 0:00:22]} Nbd7 {[%emt 0:01:12]} 7. O-O {[%emt 0:00:29]} Be7 {[%emt 0:01:26]} 8. c3 {[%emt 0:00:15]} O-O {[%emt 0:00:25]} 9. h3 {[%emt 0:00:16]} c5 {[%emt 0:01:28]} 10. Re1 {[%emt 0:00:42]} Ne4 {[%emt 0:09:29]} 11. Ne5 {[%emt 0:03:52]} Nxe5 {[%emt 0:01:18]} 12. Bxe5 {[%emt 0:00:26]} f6 {[%emt 0:06:28]} 13. Bh2 {[%emt 0:00:11]} Bd6 {[%emt 0:04:13]} 14. Bxd6 {[%emt 0:03:18]} Qxd6 {[%emt 0:00:21]} 15. f3 {[%emt 0:08:59]} Nxd2 {[%emt 0:04:24]} 16. Qxd2 {[%emt 0:00:04]} f5 {[%emt 0:07:31]} 17. e4 {[%emt 0:04:03]} dxe4 {[%emt 0:05:41]} 18. fxe4 {[%emt 0:02:24]} cxd4 {[%emt 0:01:25]} 19. exf5 {[%emt 0:02:05]} dxc3 {[%emt 0:04:12]} 20. Qxc3 {[%emt 0:00:35]} Qg3 21. Re2 Rac8 {[%emt 0:14:50]} 22. Qb3 {[%emt 0:06:01]} Bd5 {[%emt 0:02:20]} 23. Qa3 {[%emt 0:08:09]} Qg5 {[%emt 0:04:39]} 24. fxe6 {[%emt 0:06:45]} Rc1+ {[%emt 0:04:20]} 25. Rxc1 {[%emt 0:00:18]} Qxc1+ {[%emt 0:00:05]} 26. Kh2 {[%emt 0:00:17]} Qf4+ {[%emt 0:11:41]} 27. Kg1 {[%emt 0:06:39]} Qc1+ {[%emt 0:01:01]} 28. Kh2 {[%emt 0:02:39]} 1/2-1/2

[Event "22nd Ruzomberok Open 2019"]
[Site "Ruzomberok"]
[Date "2019.07.04"]
[Round "6.31"]
[White "Zilkay, Dominik"]
[Black "Konkol, Emil"]
[Result "1-0"]
[ECO "C44"]
[WhiteElo "1328"]
[BlackElo "1714"]
[Annotator "NA"]
[PlyCount "79"]
[EventDate "2019.06.29"]
[EventType "swiss"]
[EventCountry "SVK"]
[SourceTitle "playchess.com"]
[Source "ChessBase"]
[SourceQuality "1"]
[TimeControl "40/5400+30:1800+30"]

1. e4 {[%emt 0:11:36]} e5 {[%emt 0:12:04]} 2. Nf3 {[%emt 0:00:47]} Nc6 {[%emt 0:00:08]} 3. d4 {[%emt 0:00:09]} exd4 {[%emt 0:00:54]} 4. Bc4 {[%emt 0:00:01]} Bb4+ {[%emt 0:00:38]} 5. c3 {[%emt 0:00:02]} dxc3 {[%emt 0:00:11]} 6. bxc3 {[%emt 0:00:23]} Be7 {[%emt 0:01:20]} 7. O-O {[%emt 0:00:05]} d6 {[%emt 0:00:29]} 8. Qb3 {[%emt 0:03:01]} Be6 {[%emt 0:04:52]} 9. Bxe6 {[%emt 0:02:03]} fxe6 10. Qxe6 Qd7 {[%emt 0:01:13]} 11. Qb3 {[%emt 0:01:49]} O-O-O {[%emt 0:00:39]} 12. Na3 {[%emt 0:01:08]} Nf6 {[%emt 0:00:44]} 13. Rb1 {[%emt 0:00:58]} b6 {[%emt 0:00:22]} 14. Qc4 {[%emt 0:04:11]} Kb7 {[%emt 0:02:08]} 15. Nc2 {[%emt 0:02:57]} d5 {[%emt 0:03:00]} 16. exd5 {[%emt 0:01:45]} Qxd5 {[%emt 0:00:24]} 17. Qa4 {[%emt 0:05:09]} Qa5 {[%emt 0:07:14]} 18. Qc4 {[%emt 0:00:45]} a6 {[%emt 0:01:25]} 19. a4 {[%emt 0:00:42]} Qf5 {[%emt 0:03:14]} 20. Rb2 {[%emt 0:02:56]} Bc5 {[%emt 0:04:35]} 21. Be3 {[%emt 0:18:22]} Bxe3 {[%emt 0:01:01]} 22. Nxe3 {[%emt 0:00:01]} Qd3 {[%emt 0:00:47]} 23. Qb3 {[%emt 0:01:56]} Na5 {[%emt 0:01:54]} 24. Qb4 {[%emt 0:00:20]} Nc6 {[%emt 0:00:30]} 25. Qb3 {[%emt 0:02:03]} a5 {[%emt 0:01:23]} 26. Rfb1 {[%emt 0:01:13]} Rhe8 {[%emt 0:01:10]} 27. Nc4 {[%emt 0:01:45]} Nd5 {[%emt 0:00:55]} 28. Rc1 {[%emt 0:03:22]} Re2 {[%emt 0:02:22]} 29. Rbb1 {[%emt 0:02:03]} Qf5 {[%emt 0:07:24]} 30. Qb5 {[%emt 0:00:54]} Nde7 {[%emt 0:02:18]} 31. Nxa5+ {[%emt 0:00:43]} Nxa5 {[%emt 0:00:22]} 32. Qxe2 {[%emt 0:00:02]} Nec6 {[%emt 0:01:25]} 33. c4 {[%emt 0:03:13]} Qd3 {[%emt 0:04:34]} 34. Qxd3 {[%emt 0:04:10]} Rxd3 {[%emt 0:01:13]} 35. c5 {[%emt 0:01:05]} Nb3 {[%emt 0:00:06]} 36. Rc2 {[%emt 0:02:11]} bxc5 {[%emt 0:01:50]} 37. Rxc5 {[%emt 0:01:20]} Ncd4 {[%emt 0:00:55]} 38. Nxd4 {[%emt 0:00:50]} Rxd4 {[%emt 0:00:06]} 39. Rxb3+ {[%emt 0:01:29]} Ka6 {[%emt 0:00:01]} 40. g3 {[%emt 0:00:39]} 1-0